bitfinex-derivatives/quotes_BTCF0:USTF0_20250608
["timestamp","ask_amount","ask_price","bid_price","bid_amount"]
[1749373280682,0.1937574,105460.0,105450.0,2.08104589]
[1749373281078,0.1937574,105460.0,105450.0,1.96262074]
[1749373283388,0.1937574,105460.0,105450.0,2.08106469]
[1749373283590,0.1937574,105460.0,105450.0,2.08126469]
[1749373284188,0.0042,105460.0,105450.0,2.08126469]
[1749373284390,0.0042,105460.0,105450.0,2.17496469]
[1749373284578,0.1937574,105460.0,105450.0,2.17496469]
[1749373284981,0.1937574,105460.0,105450.0,2.05738449]
[1749373285186,0.1937574,105460.0,105450.0,2.17496469]
[1749373287694,0.1937574,105460.0,105450.0,1.45336469]
[1749373287895,0.1937574,105460.0,105450.0,1.81416469]
[1749373288291,0.1937574,105460.0,105450.0,1.96228013]
[1749373293489,0.1937574,105460.0,105450.0,1.84383618]
[1749373293684,0.1937574,105460.0,105450.0,2.05113049]
[1749373293893,0.3113376,105460.0,105450.0,1.41403618]
[1749373294197,0.3113376,105460.0,105450.0,1.84367618]
[1749373294389,0.3113376,105460.0,105450.0,1.74499618]
[1749373295102,0.3113376,105460.0,105450.0,1.95229049]
[1749373295401,0.10484806,105460.0,105450.0,1.95229049]
[1749373295698,0.10484806,105460.0,105450.0,1.80417505]
[1749373298486,0.10484806,105460.0,105450.0,1.37453505]
[1749373301593,0.1895574,105460.0,105450.0,1.51670795]
[1749373302895,0.1895574,105460.0,105450.0,1.15590795]
[1749373303101,0.1895574,105460.0,105450.0,1.51670795]
[1749373303305,0.1895574,105460.0,105450.0,1.53060144]
[1749373304200,0.1895574,105460.0,105450.0,1.53060143]
[1749373304602,0.1895574,105460.0,105450.0,1.51670795]
[1749373305102,0.1895574,105460.0,105450.0,1.53062231]
[1749373305703,0.1895574,105460.0,105450.0,1.51670795]
[1749373305903,0.1895574,105460.0,105450.0,1.5306223]
[1749373306204,0.1895574,105460.0,105450.0,1.51670795]
[1749373306602,0.1895574,105460.0,105450.0,1.5306253]
[1749373306803,0.1895574,105460.0,105450.0,1.53062548]
[1749373306997,0.1895574,105460.0,105450.0,1.51670795]
[1749373307196,0.1895574,105460.0,105450.0,1.53086557]
[1749373307403,0.1895574,105460.0,105450.0,1.51670795]
[1749373308403,0.1895574,105460.0,105450.0,1.53086556]
[1749373308594,0.1895574,105460.0,105450.0,1.51670795]
[1749373309096,0.1895574,105460.0,105450.0,1.53089266]
[1749373309302,0.1895574,105460.0,105450.0,1.51670795]
[1749373309504,0.1895574,105460.0,105450.0,1.53089264]
[1749373309709,0.1895574,105460.0,105450.0,1.53089262]
[1749373310001,0.1895574,105460.0,105450.0,1.53089245]
[1749373310203,0.1895574,105460.0,105450.0,1.53089266]
[1749373310402,0.1006483,105460.0,105450.0,1.53089264]
[1749373310601,0.1006483,105460.0,105450.0,1.51670795]
[1749373311004,0.1006483,105460.0,105450.0,1.53089265]
[1749373311500,0.40267077,105470.0,105450.0,1.51670795]
[1749373311806,0.59221017,105470.0,105460.0,0.45530323]
[1749373312005,0.59221017,105470.0,105460.0,0.66261969]
[1749373312912,0.59221017,105470.0,105460.0,0.51445396]
[1749373313712,0.59221017,105470.0,105460.0,0.63298701]
[1749373313902,0.59221017,105470.0,105460.0,0.51540681]
[1749373314509,0.54682107,105470.0,105460.0,0.39687376]
[1749373314712,0.54782107,105470.0,105460.0,0.39687376]
[1749373315708,0.54782107,105470.0,105460.0,0.41109376]
[1749373318411,0.54782107,105470.0,105460.0,0.55925949]
[1749373323410,0.54782107,105470.0,105460.0,0.67779997]
[1749373323612,0.54782107,105470.0,105460.0,0.52963424]
[1749373324215,0.54782107,105470.0,105460.0,0.64721444]
[1749373324601,0.54782107,105470.0,105460.0,0.52867396]
[1749373326514,0.54782107,105470.0,105460.0,0.53272274]
[1749373327417,0.54782107,105470.0,105460.0,0.41514254]
[1749373327618,0.54782107,105470.0,105460.0,0.48044254]
[1749373329220,0.54782107,105470.0,105460.0,0.59898302]
[1749373333422,0.54782107,105470.0,105460.0,0.62860827]
[1749373335022,0.54782107,105470.0,105460.0,0.66080827]
[1749373335321,0.51472107,105470.0,105460.0,0.66080827]
[1749373349029,0.48382107,105470.0,105460.0,0.66080827]
[1749373349234,0.28745177,105470.0,105460.0,0.74876259]
[1749373349529,0.35764617,105470.0,105460.0,0.74876259]
[1749373356142,0.35764617,105470.0,105460.0,0.63022274]
[1749373356342,0.35764617,105470.0,105460.0,0.77838847]
[1749373359340,0.35764617,105470.0,105460.0,0.89692188]
[1749373362947,0.35764617,105470.0,105460.0,0.77838847]
[1749373363447,0.35764617,105470.0,105460.0,0.89692117]
[1749373363646,0.35764617,105470.0,105460.0,0.74875544]
[1749373366852,0.35764617,105470.0,105460.0,0.75124348]
[1749373367245,0.35664617,105470.0,105460.0,0.75124348]
[1749373373452,0.35664617,105470.0,105460.0,0.63271078]
[1749373373955,0.35664617,105470.0,105460.0,0.64689241]
[1749373374156,0.35664617,105470.0,105460.0,0.63271078]
[1749373374353,0.35664617,105470.0,105460.0,0.64689244]
[1749373374553,0.35664617,105470.0,105460.0,0.63271078]
[1749373374949,0.35664617,105470.0,105460.0,0.64689279]
[1749373375757,0.35664617,105470.0,105460.0,0.63271078]
[1749373375959,0.35664617,105470.0,105460.0,0.64689279]
[1749373376158,0.35664617,105470.0,105460.0,0.73579181]
[1749373376360,0.35664617,105470.0,105460.0,0.73579182]
[1749373376561,0.35664617,105470.0,105460.0,0.6468928]
[1749373376962,0.35664617,105470.0,105460.0,0.64693902]
[1749373377459,0.35664617,105470.0,105460.0,0.63271078]
[1749373377860,0.35664617,105470.0,105460.0,0.64693904]
[1749373378864,0.35664617,105470.0,105460.0,0.64693902]
[1749373379063,0.35664617,105470.0,105460.0,0.63271078]
[1749373379263,0.35664617,105470.0,105460.0,0.75124348]
[1749373383567,0.35664617,105470.0,105460.0,0.78087651]
[1749373387162,0.35664617,105470.0,105460.0,0.7512548]
[1749373392978,0.35664617,105470.0,105460.0,0.6336746]
[1749373393272,0.35664617,105470.0,105460.0,0.76526609]
[1749373393475,0.35664617,105470.0,105460.0,0.7512548]
[1749373393669,0.35664617,105470.0,105460.0,0.76526537]
[1749373394170,0.35664617,105470.0,105460.0,0.7512548]
[1749373394377,0.35664617,105470.0,105460.0,0.76526537]
[1749373394575,0.35664617,105470.0,105460.0,0.7512548]
[1749373403680,0.35664617,105470.0,105460.0,0.6336746]
[1749373403883,0.35664617,105470.0,105460.0,0.7512548]
[1749373404983,0.35664617,105470.0,105460.0,0.78087651]
[1749373407485,0.76664617,105470.0,105460.0,0.4947814]
[1749373407680,0.94852637,105470.0,105460.0,0.2240245]
[1749373407880,1.34062637,105470.0,105460.0,0.18256689]
[1749373408077,1.34062637,105470.0,105460.0,0.15291566]
[1749373408688,1.34062637,105470.0,105460.0,0.15696444]
[1749373413288,1.22304617,105470.0,105460.0,0.15696444]
[1749373413487,1.22304617,105470.0,105460.0,0.17171602]
[1749373418691,1.22304617,105470.0,105460.0,0.1124916]
[1749373419298,1.22304617,105470.0,105460.0,0.17171602]
[1749373419498,1.22304617,105470.0,105460.0,0.1124916]
[1749373421794,1.58384617,105470.0,105460.0,0.1124916]
[1749373423502,1.58384617,105470.0,105460.0,0.21618886]
[1749373426503,1.27384617,105470.0,105460.0,0.21618886]
[1749373426701,1.70312617,105470.0,105460.0,0.33376906]
[1749373427400,1.70312617,105470.0,105460.0,0.33694464]
[1749373427704,1.27384617,105470.0,105460.0,0.33694464]
[1749373428001,1.80152617,105470.0,105460.0,0.21936444]
[1749373430497,1.65284597,105470.0,105460.0,0.21936444]
[1749373430691,1.77042617,105470.0,105460.0,0.25136444]
[1749373431104,1.40962617,105470.0,105460.0,0.25136444]
[1749373433006,1.04882617,105470.0,105460.0,0.25136444]
[1749373433311,1.40962617,105470.0,105460.0,0.25136444]
[1749373434995,1.04882617,105470.0,105460.0,0.25136444]
[1749373435208,1.40962617,105470.0,105460.0,0.25136444]
[1749373435699,1.04882617,105470.0,105460.0,0.25136444]
[1749373435900,0.94714617,105470.0,105460.0,0.25136444]
[1749373436201,0.91584617,105470.0,105460.0,0.55850354]
[1749373436509,0.98452617,105470.0,105460.0,0.58815477]
[1749373438107,0.98452617,105470.0,105460.0,0.46961238]
[1749373441305,0.98452617,105470.0,105460.0,0.55846702]
[1749373443713,0.98452617,105470.0,105460.0,0.46961238]
[1749373446216,0.98452617,105470.0,105460.0,0.58815477]
[1749373447715,0.98452617,105470.0,105460.0,0.35203218]
[1749373447916,1.34532617,105470.0,105460.0,0.35203218]
[1749373448216,1.34532617,105470.0,105460.0,0.44087076]
[1749373448619,1.34532617,105470.0,105460.0,0.47057457]
[1749373451633,1.34528617,105470.0,105460.0,0.47057457]
[1749373453120,1.34528617,105470.0,105460.0,0.28101567]
[1749373455324,0.98448617,105470.0,105460.0,0.28101567]
[1749373455514,1.37698617,105470.0,105460.0,0.28101567]
[1749373456227,1.40938617,105470.0,105460.0,0.28101567]
[1749373456926,1.40938617,105470.0,105460.0,0.25132893]
[1749373457427,1.40938617,105470.0,105460.0,0.16247328]
[1749373457829,1.04858617,105470.0,105460.0,0.16247328]
[1749373458022,1.40938617,105470.0,105460.0,0.16247328]
[1749373462130,1.04858617,105470.0,105460.0,0.16247328]
[1749373462335,1.40938617,105470.0,105460.0,0.16247328]
[1749373463532,1.40938617,105470.0,105460.0,0.31059563]
[1749373464327,1.40938617,105470.0,105460.0,0.30996233]
[1749373465936,1.04858617,105470.0,105460.0,0.30996233]
[1749373466136,1.40938617,105470.0,105460.0,0.30996233]
[1749373466436,1.40918617,105470.0,105460.0,0.30996233]
[1749373466632,1.40918617,105470.0,105460.0,0.49952073]
[1749373466937,1.40918617,105470.0,105460.0,0.30996233]
[1749373467337,1.40918617,105470.0,105460.0,0.49952073]
[1749373467836,1.40918617,105470.0,105460.0,0.30996233]
[1749373469635,1.40918617,105470.0,105460.0,0.49952073]
[1749373469935,1.37678617,105470.0,105460.0,0.61710093]
[1749373470237,0.19168117,105470.0,105460.0,1.06590117]
[1749373470540,0.19188117,105470.0,105460.0,1.13590117]
[1749373470740,0.19188117,105470.0,105460.0,1.1359038]
[1749373471145,0.19188117,105470.0,105460.0,1.14545672]
[1749373472241,0.19188117,105470.0,105460.0,1.22158348]
[1749373472743,0.19188117,105470.0,105460.0,1.14545672]
[1749373473544,0.19188117,105470.0,105460.0,1.29362245]
[1749373473942,0.19188117,105470.0,105460.0,1.14545672]
[1749373476045,0.19188117,105470.0,105460.0,1.29362245]
[1749373476352,0.19188117,105470.0,105460.0,1.17508006]
[1749373477657,0.19188117,105470.0,105460.0,1.2524171]
[1749373478757,0.19188117,105470.0,105460.0,1.00770378]
[1749373478758,0.30946137,105470.0,105460.0,1.00770378]
[1749373479066,0.30946137,105470.0,105460.0,0.64690378]
[1749373479258,0.30946137,105470.0,105460.0,1.19368398]
[1749373486973,0.30946137,105470.0,105460.0,1.1896352]
[1749373487475,0.19188117,105470.0,105460.0,1.1896352]
[1749373488078,0.19188117,105470.0,105460.0,1.19368398]
[1749373491079,0.19188117,105470.0,105460.0,1.31126418]
[1749373491571,0.19188117,105470.0,105460.0,1.42961743]
[1749373492379,0.19188117,105470.0,105460.0,1.31126418]
[1749373493480,0.19188117,105470.0,105460.0,1.28146546]
[1749373494082,0.19188117,105470.0,105460.0,1.27741668]
[1749373494274,0.19188117,105470.0,105460.0,1.15904967]
[1749373495081,0.19188117,105470.0,105460.0,1.16309845]
[1749373495382,0.19188117,105470.0,105460.0,1.67206418]
[1749373498286,0.19188117,105470.0,105460.0,1.6680154]
[1749373498986,0.19188117,105470.0,105460.0,1.3072154]
[1749373499190,0.19188117,105470.0,105460.0,1.6680154]
[1749373500592,0.19188117,105470.0,105460.0,1.87530971]
[1749373501491,0.19168117,105470.0,105460.0,1.87530971]
[1749373503192,0.19168117,105470.0,105460.0,1.87935849]
[1749373504086,0.19168117,105470.0,105460.0,1.51855849]
[1749373504287,0.19168117,105470.0,105460.0,1.87935849]
[1749373505989,0.19168117,105470.0,105460.0,1.51855849]
[1749373506292,0.19168117,105470.0,105460.0,1.76177829]
[1749373507790,0.19168117,105470.0,105460.0,1.40097829]
[1749373507989,0.19168117,105470.0,105460.0,1.76177829]
[1749373508390,0.19168117,105470.0,105460.0,1.55448398]
[1749373509498,0.19168117,105470.0,105460.0,1.52482891]
[1749373517396,0.19168117,105470.0,105460.0,1.16402891]
[1749373517598,0.19168117,105470.0,105460.0,1.67299464]
[1749373518398,0.19168117,105470.0,105460.0,1.66894586]
[1749373519603,0.19168117,105470.0,105460.0,1.67299464]
[1749373520500,0.19168117,105470.0,105460.0,1.66894586]
[1749373521502,0.19168117,105470.0,105460.0,1.67299464]
[1749373523502,0.19168117,105470.0,105460.0,1.55448398]
[1749373526198,0.19168117,105470.0,105460.0,1.67206418]
[1749373532406,0.19168117,105470.0,105460.0,1.87935849]
[1749373536610,0.19168117,105470.0,105460.0,1.51855849]
[1749373536810,0.19168117,105470.0,105460.0,1.87935849]
[1749373543113,0.19168117,105470.0,105460.0,1.67206418]
[1749373545923,0.19168117,105470.0,105460.0,1.87935849]
[1749373546319,0.49890137,105470.0,105460.0,1.04326105]
[1749373546520,1.53882352,105470.0,105460.0,0.48218122]
[1749373546822,1.89962352,105470.0,105460.0,0.21562422]
[1749373547022,0.189559,105460.0,105450.0,0.11867894]
[1749373547218,1.5453994,105460.0,105450.0,0.11867894]
[1749373547423,1.5453994,105460.0,105450.0,0.00014177]
[1749373548720,1.5473994,105460.0,105450.0,0.00014177]
[1749373549623,1.5493994,105460.0,105450.0,0.00014177]
[1749373550128,1.5493994,105460.0,105450.0,0.0445132]
[1749373552734,1.9101994,105460.0,105450.0,0.0445132]
[1749373553532,1.1885994,105460.0,105450.0,0.00014177]
[1749373553830,1.9101994,105460.0,105450.0,0.00014177]
[1749373554928,1.1885994,105460.0,105450.0,0.00014177]
[1749373555127,1.9101994,105460.0,105450.0,0.00014177]
[1749373556223,1.7926192,105460.0,105450.0,0.00014177]
[1749373556831,2.0084394,105460.0,105450.0,0.18971717]
[1749373557032,1.8908592,105460.0,105450.0,0.18971717]
[1749373557233,1.8908592,105460.0,105450.0,0.30729737]
[1749373558134,1.5300992,105460.0,105450.0,0.30729737]
[1749373558434,1.5300992,105460.0,105450.0,0.3516688]
[1749373558935,1.5300992,105460.0,105450.0,0.3974374]
[1749373559127,1.1692992,105460.0,105450.0,0.3974374]
[1749373559323,0.6415392,105460.0,105450.0,0.3974374]
[1749373559534,1.1692592,105460.0,105450.0,0.3974374]
[1749373559736,1.1692592,105460.0,105450.0,0.2798572]
[1749373560035,2.0076394,105460.0,105450.0,0.0902818]
[1749373560235,2.0390394,105460.0,105450.0,0.0902818]
[1749373560928,2.0390394,105460.0,105450.0,0.04591037]
[1749373561128,2.0390394,105460.0,105450.0,0.0902818]
[1749373561329,2.0390394,105460.0,105450.0,0.04591037]
[1749373561828,1.5113194,105460.0,105450.0,0.04591037]
[1749373562034,2.0389994,105460.0,105450.0,0.04591037]
[1749373562932,1.6781994,105460.0,105450.0,0.04591037]
[1749373563233,2.3997994,105460.0,105450.0,0.04591037]
[1749373563533,2.3997994,105460.0,105450.0,0.0902818]
[1749373565328,2.3997994,105460.0,105450.0,0.09433058]
[1749373565734,0.1896123,105430.0,105420.0,0.66896337]
[1749373565932,0.1896123,105430.0,105420.0,0.6541262]
[1749373565933,0.3071925,105430.0,105420.0,0.6541262]
[1749373566136,0.3071925,105430.0,105420.0,0.7717064]
[1749373566337,0.3071925,105430.0,105420.0,1.1325064]
[1749373566537,0.3071925,105430.0,105420.0,0.7717064]
[1749373567439,0.3081925,105430.0,105420.0,0.7717064]
[1749373567837,0.3081925,105430.0,105420.0,0.6541262]
[1749373568039,0.3081925,105430.0,105420.0,0.7717064]
[1749373568539,0.93478167,105430.0,105420.0,0.45862223]
[1749373568840,0.87830147,105430.0,105420.0,0.5596303]
[1749373569542,0.87830147,105430.0,105420.0,0.37]
[1749373571139,0.87853839,105430.0,105420.0,0.37]
[1749373572044,0.87853839,105430.0,105420.0,0.5596303]
[1749373572236,0.87853839,105430.0,105420.0,0.37]
[1749373576947,0.87853839,105430.0,105420.0,0.42910803]
[1749373577641,0.87853839,105430.0,105420.0,0.47441118]
[1749373579443,0.87853839,105430.0,105420.0,0.47845996]
[1749373580448,0.87853839,105430.0,105420.0,0.10845996]
[1749373580645,1.40717839,105430.0,105420.0,0.10845996]
[1749373580845,0.87853839,105430.0,105420.0,0.10845996]
[1749373581049,1.40717839,105430.0,105420.0,0.10845996]
[1749373582646,0.87853839,105430.0,105420.0,0.10845996]
[1749373582951,1.40713839,105430.0,105420.0,0.10845996]
[1749373584647,1.43973839,105430.0,105420.0,0.10845996]
[1749373586854,0.91113839,105430.0,105420.0,0.10845996]
[1749373587050,1.43981839,105430.0,105420.0,0.10845996]
[1749373588541,1.44081839,105430.0,105420.0,0.10845996]
[1749373590053,1.44081839,105430.0,105420.0,0.12237996]
[1749373590655,0.73172127,105430.0,105420.0,0.31201016]
[1749373590849,1.26092127,105430.0,105420.0,0.40761016]
[1749373591152,1.37872923,105430.0,105420.0,0.40761016]
[1749373592261,1.37772923,105430.0,105420.0,0.40761016]
[1749373593157,1.37773017,105430.0,105420.0,0.40761016]
[1749373593347,1.37673017,105430.0,105420.0,0.40761016]
[1749373593546,1.37673017,105430.0,105420.0,0.49623239]
[1749373594853,1.37661017,105430.0,105420.0,0.49623239]
[1749373595454,0.81743017,105430.0,105420.0,0.49623239]
[1749373595651,1.22850127,105430.0,105420.0,0.49623239]
[1749373595856,1.22830127,105430.0,105420.0,0.49623239]
[1749373596248,0.69962127,105430.0,105420.0,0.49623239]
[1749373596558,1.12966127,105430.0,105420.0,0.43712436]
[1749373597256,0.69962127,105430.0,105420.0,0.43712436]
[1749373597462,1.12962127,105430.0,105420.0,0.43712436]
[1749373603663,1.12962127,105430.0,105420.0,0.40777964]
[1749373603960,1.16092127,105430.0,105420.0,0.40777964]
[1749373604264,1.27873017,105430.0,105420.0,0.40777964]
[1749373605754,1.31013017,105430.0,105420.0,0.40777964]
[1749373608864,0.94933017,105430.0,105420.0,0.40777964]
[1749373609056,1.31013017,105430.0,105420.0,0.40777964]
[1749373610562,1.31013017,105430.0,105420.0,0.21814944]
[1749373610764,1.31013017,105430.0,105420.0,0.40777974]
[1749373610965,1.31013017,105430.0,105420.0,0.21814944]
[1749373611851,1.19232127,105430.0,105420.0,0.21814944]
[1749373612057,1.31013017,105430.0,105420.0,0.21814944]
[1749373613167,1.31013209,105430.0,105420.0,0.21814944]
[1749373613667,1.31013209,105430.0,105420.0,0.24749416]
[1749373614964,0.88013209,105430.0,105420.0,0.43712426]
[1749373615164,1.37801209,105430.0,105420.0,0.43712426]
[1749373615364,1.37801209,105430.0,105420.0,0.24749416]
[1749373621269,1.37789209,105430.0,105420.0,0.24749416]
[1749373623166,1.37789209,105430.0,105420.0,0.43712426]
[1749373624163,1.37789209,105430.0,105420.0,0.24749416]
[1749373626471,1.37769209,105430.0,105420.0,0.24749416]
[1749373627672,1.44069209,105430.0,105420.0,0.15189416]
[1749373637586,1.79069209,105430.0,105420.0,0.15189416]
[1749373637784,1.93850291,105430.0,105420.0,0.15189416]
[1749373638783,1.82069209,105430.0,105420.0,0.15189416]
[1749373639087,1.94050291,105430.0,105420.0,0.15189416]
[1749373640487,1.41134291,105430.0,105420.0,0.15189416]
[1749373640790,1.94066291,105430.0,105420.0,0.15189416]
[1749373642391,1.57986291,105430.0,105420.0,0.15189416]
[1749373642592,1.94066291,105430.0,105420.0,0.15189416]
[1749373643690,1.94066291,105430.0,105420.0,0.16702029]
[1749373644695,1.94066291,105430.0,105420.0,0.07725356]
[1749373645298,1.94066291,105430.0,105420.0,0.16804538]
[1749373646295,1.94066291,105430.0,105420.0,0.1087606]
[1749373648096,1.94066291,105430.0,105410.0,0.24094878]
[1749373648097,2.00105061,105430.0,105410.0,0.14804878]
[1749373648300,0.0474148,105410.0,105380.0,0.14816573]
[1749373648499,0.1896841,105390.0,105380.0,0.5905008]
[1749373648795,0.20904588,105390.0,105380.0,0.73951162]
[1749373648995,0.20904588,105390.0,105380.0,0.933217]
[1749373649197,0.20904588,105390.0,105380.0,1.032097]
[1749373649393,0.20924588,105390.0,105380.0,1.032097]
[1749373649603,0.3270567,105390.0,105380.0,0.09965625]
[1749373649794,0.1897201,105370.0,105360.0,0.597956]
[1749373649988,0.33616409,105370.0,105360.0,0.46347049]
[1749373650498,0.32646828,105370.0,105360.0,0.36459049]
[1749373651093,0.32646828,105370.0,105360.0,0.42969049]
[1749373651295,0.20865746,105370.0,105360.0,0.3651181]
[1749373651599,0.20865746,105370.0,105360.0,0.2658381]
[1749373652396,0.20865746,105370.0,105360.0,0.2678381]
[1749373652797,0.20865746,105370.0,105360.0,0.2998381]
[1749373653004,0.20865746,105370.0,105360.0,0.2978381]
[1749373653205,0.32658305,105370.0,105360.0,0.1081]
[1749373653403,0.29409651,105380.0,105370.0,0.1897189]
[1749373653604,0.36775519,105380.0,105370.0,0.73134449]
[1749373654002,0.07403501,105380.0,105370.0,1.17114449]
[1749373654310,0.1897009,105380.0,105370.0,1.4790598]
[1749373654500,0.1907009,105380.0,105370.0,1.54955699]
[1749373654998,0.1909009,105380.0,105370.0,1.54955699]
[1749373655306,0.1909009,105380.0,105370.0,1.11627699]
[1749373655807,0.1919009,105380.0,105370.0,1.11627699]
[1749373656005,0.1909009,105380.0,105370.0,1.11627699]
[1749373656400,0.1899009,105380.0,105370.0,1.11627699]
[1749373656913,0.2654242,105380.0,105370.0,1.11627699]
[1749373657099,0.1899009,105380.0,105370.0,1.11627699]
[1749373657702,0.1899009,105380.0,105370.0,1.11727699]
[1749373658510,0.1899009,105380.0,105370.0,0.92747699]
[1749373664911,0.1899009,105380.0,105370.0,0.96037699]
[1749373665512,0.1899009,105380.0,105370.0,1.07842254]
[1749373670816,0.1899009,105380.0,105370.0,1.08247132]
[1749373671320,0.1899009,105380.0,105370.0,1.0824309]
[1749373675022,0.1899009,105380.0,105370.0,1.5152309]
[1749373676222,0.1899009,105380.0,105370.0,1.66339663]
[1749373676422,0.1899009,105380.0,105370.0,1.5152309]
[1749373677026,0.1899009,105380.0,105370.0,1.52875029]
[1749373677520,0.1899009,105380.0,105370.0,1.88955093]
[1749373677917,0.1899009,105380.0,105370.0,1.88955095]
[1749373678121,0.1899009,105380.0,105370.0,1.8760309]
[1749373678721,0.1899009,105380.0,105370.0,1.88955093]
[1749373679025,0.1899009,105380.0,105370.0,1.88955095]
[1749373679219,0.1899009,105380.0,105370.0,1.7715054]
[1749373679529,0.1899009,105380.0,105370.0,1.75798535]
[1749373679829,0.1899009,105380.0,105370.0,1.77150602]
[1749373680127,0.1899009,105380.0,105370.0,1.77150733]
[1749373680314,0.1899009,105380.0,105370.0,1.90615108]
[1749373680518,0.1899009,105380.0,105370.0,1.99433173]
[1749373680519,0.0002,105380.0,105370.0,1.99433173]
[1749373680821,0.76500177,105400.0,105390.0,0.1896832]
[1749373681018,0.42668177,105400.0,105390.0,0.75720945]
[1749373681224,0.54456694,105400.0,105390.0,0.93956423]
[1749373681614,0.54456694,105400.0,105390.0,0.82110945]
[1749373682324,0.54456694,105400.0,105390.0,0.93956423]
[1749373682521,0.49714634,105400.0,105390.0,0.93956423]
[1749373682831,0.49714634,105400.0,105390.0,0.85072315]
[1749373683024,0.49814634,105400.0,105390.0,0.85072315]
[1749373683531,0.49914634,105400.0,105390.0,0.85072315]
[1749373684123,0.49714634,105400.0,105390.0,0.85072315]
[1749373685035,0.49714634,105400.0,105390.0,0.85477193]
[1749373685222,0.57147783,105400.0,105390.0,0.85477193]
[1749373686932,0.57147783,105400.0,105390.0,0.73688676]
[1749373687127,0.57147783,105400.0,105390.0,0.85477193]
[1749373687740,0.45359266,105400.0,105390.0,0.85477193]
[1749373687929,0.57147783,105400.0,105390.0,0.85477193]
[1749373690436,0.45359266,105400.0,105390.0,0.85477193]
[1749373690935,0.45359266,105400.0,105390.0,1.28733193]
[1749373693049,0.40617226,105400.0,105390.0,1.28733193]
[1749373693547,0.40617226,105400.0,105390.0,1.31687888]
[1749373694050,0.33184077,105400.0,105390.0,1.31687888]
[1749373695542,0.01935948,105410.0,105400.0,0.1896652]
[1749373695746,0.20900668,105410.0,105400.0,0.94993658]
[1749373695943,0.20920668,105410.0,105400.0,1.10029136]
[1749373696146,0.01955948,105410.0,105400.0,1.01149032]
[1749373696338,0.01935948,105410.0,105400.0,1.10024462]
[1749373696535,0.20900668,105410.0,105400.0,0.98178984]
[1749373696738,0.21020668,105410.0,105400.0,0.98178984]
[1749373697544,0.02055948,105410.0,105400.0,0.98178984]
[1749373697743,0.21020668,105410.0,105400.0,0.98178984]
[1749373697943,0.21120668,105410.0,105400.0,0.98178984]
[1749373700047,0.21120668,105410.0,105400.0,0.62098984]
[1749373700249,0.21120668,105410.0,105400.0,1.34663862]
[1749373700751,0.02155948,105410.0,105400.0,1.34663862]
[1749373701052,0.21120668,105410.0,105400.0,1.34663862]
[1749373703750,0.21120668,105410.0,105400.0,1.3763391]
[1749373708450,0.21120668,105410.0,105400.0,1.6863391]
[1749373710452,0.02155948,105410.0,105400.0,1.6863391]
[1749373710757,0.21120678,105410.0,105400.0,1.6863391]
[1749373710957,0.21100678,105410.0,105400.0,1.6863391]
[1749373711149,0.21120678,105410.0,105400.0,1.6863391]
[1749373714462,0.02155948,105410.0,105400.0,1.6863391]
[1749373719664,0.21120668,105410.0,105400.0,1.6863391]
[1749373720365,0.21120668,105410.0,105400.0,2.2175791]
[1749373724270,0.21120668,105410.0,105400.0,2.36574483]
[1749373725364,0.21120668,105410.0,105400.0,2.24729005]
[1749373729069,0.21120668,105410.0,105400.0,1.52569005]
[1749373729273,0.21120668,105410.0,105400.0,2.24729005]
[1749373730974,0.24160668,105410.0,105400.0,2.24729005]
[1749373732175,0.24160668,105410.0,105400.0,2.24685005]
[1749373732367,0.35949185,105410.0,105400.0,1.60104488]
[1749373732568,0.42359185,105410.0,105400.0,1.25915497]
[1749373732773,0.42359185,105410.0,105400.0,1.70027497]
[1749373732973,0.42359185,105410.0,105400.0,1.55210924]
[1749373733174,0.42359185,105410.0,105400.0,1.70027497]
[1749373733875,0.42359185,105410.0,105400.0,1.55210924]
[1749373734076,0.42359185,105410.0,105400.0,1.64104214]
[1749373735781,0.42359185,105410.0,105400.0,1.74072214]
[1749373736078,0.30570668,105410.0,105400.0,1.74072214]
[1749373739873,0.30570668,105410.0,105400.0,1.74056214]
[1749373740081,0.30570668,105410.0,105400.0,1.73056214]
[1749373740381,0.42359185,105410.0,105400.0,1.73056214]
[1749373741386,0.42339185,105410.0,105400.0,1.73056214]
[1749373743177,0.42339185,105410.0,105400.0,1.19992214]
[1749373743376,0.42339185,105410.0,105400.0,1.31076214]
[1749373743778,0.42339185,105410.0,105400.0,1.25140488]
[1749373747180,0.42339185,105410.0,105400.0,0.82122123]
[1749373747376,0.42339185,105410.0,105400.0,0.6730555]
[1749373749986,0.52339185,105410.0,105400.0,0.6730555]
[1749373750183,0.88419185,105410.0,105400.0,0.21146847]
[1749373750384,0.88419185,105410.0,105400.0,0.28259225]
[1749373750583,0.78419185,105410.0,105400.0,0.28259225]
[1749373756095,0.66630668,105410.0,105400.0,0.28259225]
[1749373756397,0.78419185,105410.0,105400.0,0.28259225]
[1749373758894,1.05419185,105410.0,105400.0,0.28259225]
[1749373759191,0.78419185,105410.0,105400.0,0.28259225]
[1749373760094,0.78419185,105410.0,105400.0,0.09292695]
[1749373760297,1.02123702,105410.0,105400.0,0.34181318]
[1749373760596,1.00123702,105410.0,105400.0,0.34181318]
[1749373760899,0.97335185,105410.0,105400.0,0.15214708]
[1749373761100,0.90335185,105410.0,105400.0,0.15214708]
[1749373761485,0.88335185,105410.0,105400.0,0.34181228]
[1749373762794,0.88335185,105410.0,105400.0,0.15214708]
[1749373765499,1.24123702,105410.0,105400.0,0.15214708]
[1749373765698,1.01123702,105410.0,105400.0,0.15214708]
[1749373765902,1.00123702,105410.0,105400.0,0.15214708]
[1749373766500,1.22123702,105410.0,105400.0,0.15214708]
[1749373766703,0.88335185,105410.0,105400.0,0.15214708]
[1749373767297,1.07123702,105410.0,105400.0,0.15214708]
[1749373768495,1.27123702,105410.0,105400.0,0.15214708]
[1749373769295,1.64123702,105410.0,105400.0,0.10768719]
[1749373769802,1.64123702,105410.0,105400.0,0.04846706]
[1749373770593,1.62187754,105410.0,105400.0,0.04846706]
[1749373770795,2.05223754,105410.0,105400.0,0.04846706]
[1749373771905,1.68223754,105410.0,105400.0,0.15203245]
[1749373772893,1.32143754,105410.0,105400.0,0.15203245]
[1749373773099,1.68223754,105410.0,105400.0,0.15203245]
[1749373774007,1.68223754,105410.0,105400.0,0.09281232]
[1749373776009,1.68223754,105410.0,105400.0,0.15203245]
[1749373778911,2.01223754,105410.0,105400.0,0.15203245]
[1749373779210,2.04223754,105410.0,105400.0,0.15203245]
[1749373780112,2.04223754,105410.0,105400.0,0.09281232]
[1749373783815,2.24935546,105410.0,105400.0,0.00404878]
[1749373784014,2.61015546,105410.0,105400.0,0.00404878]
[1749373785017,0.1896646,105400.0,105390.0,0.04456005]
[1749373785218,1.11233494,105400.0,105390.0,0.10916157]
[1749373785717,1.48233494,105400.0,105390.0,0.10916157]
[1749373786019,1.11233494,105400.0,105390.0,0.10916157]
[1749373786316,1.20102387,105400.0,105390.0,0.10916157]
[1749373786907,1.20102387,105400.0,105390.0,0.06474329]
[1749373787417,1.20102387,105400.0,105390.0,0.10916157]
[1749373787615,1.51102387,105400.0,105390.0,0.10916157]
[1749373787815,1.20102387,105400.0,105390.0,0.10916157]
[1749373788517,1.51102387,105400.0,105390.0,0.06474329]
[1749373788718,1.20102387,105400.0,105390.0,0.06474329]